fUSD/lending_fUSD_20260130
["ID","MTS","AMOUNT","RATE_DAILY","PERIOD"]
[404051673,1769778089325,252.81022886,0.00013502,2]
[404051674,1769778095841,166.66,0.0001228,2]
[404051675,1769778095907,166.66,0.00012539,2]
[404051676,1769778095981,166.66,0.00012797,2]
[404051677,1769778096041,166.66,0.00013056,2]
[404051678,1769778096111,166.66,0.00013314,2]
[404051679,1769778099277,150.0,0.00013501,2]
[404051680,1769778106424,1200.0,0.00013501,2]
[404051681,1769778129394,500.0,0.00012926,3]
[404051682,1769778151284,434.79,0.0001328,2]
[404051683,1769778162129,630.83,0.00012808,2]
[404051684,1769778162216,630.83,0.00012849,2]
[404051685,1769778162268,630.83,0.0001289,2]
[404051686,1769778162365,630.83,0.00012931,2]
[404051687,1769778162472,630.83,0.00012971,2]
[404051688,1769778162553,630.83,0.00013012,2]
[404051689,1769778162668,630.83,0.00013053,2]
[404051690,1769778162746,630.83,0.00013094,2]
[404051691,1769778162853,630.83,0.00013135,2]
[404051692,1769778162933,630.83,0.00013176,2]
[404051693,1769778162995,630.83,0.00013216,2]
[404051694,1769778163091,189.97977114,0.00013257,2]
[404051695,1769778163114,440.85022886,0.00013257,2]
[404051696,1769778163179,630.83,0.00013298,2]
[404051697,1769778163245,630.83,0.00013339,2]
[404051698,1769778163304,630.83,0.0001338,2]
[404051699,1769778163372,630.83,0.00013421,2]
[404051700,1769778163464,630.83,0.00013462,2]
[404051701,1769778163532,630.83,0.00013502,2]
[404051702,1769778164488,200.0,0.00012926,2]
[404052085,1769778302222,1200.0,0.00013542,2]
[404052095,1769778354498,151.0,0.00013542,2]
[404052096,1769778355539,213.76481003,0.00013542,2]
[404052098,1769778391512,1604.12,0.00012926,2]
[404052124,1769778490666,898.25,0.00012926,2]
[404052145,1769778601947,1200.0,0.00013542,2]
[404052156,1769778631487,-292.97700002,0.00013543,2]
[404052157,1769778631500,-337.85299998,0.00013543,2]
[404052158,1769778631511,-300.0,0.00013543,2]
[404052159,1769778631520,-250.0,0.00013543,2]
[404052160,1769778631529,-961.28191148,0.00013543,2]
[404052161,1769778631540,-7470.54570931,0.00013543,2]
[404052162,1769778631549,-258.53356848,0.00013556,2]
[404052163,1769778631559,-166.66,0.00013573,2]
[404052164,1769778631570,-6812.99,0.00013578,2]
[404052165,1769778631580,-630.83,0.00013584,2]
[404052166,1769778631589,-500.0,0.00013594,2]
[404052167,1769778631599,-161.964,0.00013624,2]
[404052168,1769778631608,-500.0,0.00013724,2]
[404052169,1769778631617,-500.0,0.00013724,2]
[404052170,1769778631632,-500.0,0.00013724,2]
[404052171,1769778631641,-500.0,0.00013724,2]
[404052172,1769778631652,-500.0,0.00013724,2]
[404052173,1769778631663,-500.0,0.00013724,2]
[404052174,1769778631673,-500.0,0.00013724,2]
[404052175,1769778631683,-500.0,0.00013724,2]
[404052176,1769778631692,-2500.23,0.00013751,2]
[404052177,1769778631702,-200.0,0.0001395,2]
[404052178,1769778631711,-3416.74077332,0.00014181,2]
[404052179,1769778631721,-500.0,0.00014193,2]
[404052180,1769778631730,-500.0,0.00014193,2]
[404052181,1769778631739,-153.4300785,0.00014193,2]
[404052182,1769778631749,-558.36061422,0.00014193,2]
[404052183,1769778631759,-197.64060306,0.00014193,2]
[404052184,1769778631769,-213.7708319,0.00014193,2]
[404052186,1769778631788,-318.87662267,0.00014193,2]
[404052189,1769778631797,-168.45006958,0.00014193,2]
[404052191,1769778631807,-305.66915997,0.00014193,2]
[404052194,1769778631850,-194.33084003,0.00014193,2]
[404052196,1769778631861,-500.0,0.00014193,2]
[404052198,1769778631870,-282.31235544,0.00014193,2]
[404052200,1769778631880,-218.34956867,0.00014193,2]
[404052202,1769778631889,-726.0,0.00014193,2]
[404052204,1769778631898,-1485.60469772,0.00014294,2]
[404052206,1769778631910,-1432.6153019,0.00014294,2]
[404052210,1769778631933,-1192.04853691,0.00014294,2]
[404052212,1769778631944,-590.20062203,0.00014294,2]
[404052229,1769778637560,-281.55,0.00014294,2]
[404052230,1769778637572,-11359.73558199,0.00014294,2]
[404052231,1769778637583,-3076.73606805,0.00014294,2]
[404052232,1769778637595,-696.05560694,0.00014294,2]
[404052233,1769778637619,-20200.89889173,0.00014294,2]
[404052234,1769778637631,-29029.90995989,0.00014294,2]
[404052235,1769778637642,-259.434,0.00014294,2]
[404052236,1769778637654,-2149.96767724,0.00014294,2]
[404052237,1769778637665,-3375.5170958,0.00014294,2]
[404052238,1769778637676,-539.9769101,0.00014294,2]
[404052239,1769778637695,-3438.21982309,0.00014294,2]
[404052240,1769778637707,-2027.59060188,0.00014294,2]
[404052241,1769778637718,-597.05296577,0.00014294,2]
[404052242,1769778637840,-574.0,0.00014294,2]
[404052243,1769778637852,-314.06540004,0.00014294,2]
[404052245,1769778637863,-1427.61300534,0.00014294,2]
[404052248,1769778637882,-1691.06524236,0.00014294,2]
[404052260,1769778639849,-2266.94355509,0.00014294,2]
[404052261,1769778640172,180.92393762,0.00013456,2]
[404052264,1769778645770,-272.85,0.00014294,2]
[404052265,1769778645861,-189.71977549,0.00014294,2]
[404052266,1769778645995,-2761.78958698,0.00014294,2]
[404052278,1769778674518,-654.5,0.00027397,30]
[404052279,1769778674593,-5381.86057926,0.00032004,30]
[404052280,1769778674663,-654.5,0.00032232,30]
[404052281,1769778674738,-878.23,0.00035,30]
[404052282,1769778674810,-1999.0,0.00035616,120]
[404052283,1769778674881,-1576.169,0.00035771,43]
[404052284,1769778674948,-169.316,0.00035771,43]
[404052285,1769778675015,-511.74,0.00036,30]
[404052286,1769778675084,-1999.0,0.00036712,120]
[404052287,1769778675153,-654.5,0.00037067,120]
[404052288,1769778675221,-178.98377325,0.00037753,120]
[404052289,1769778675289,-1999.0,0.00037808,120]
[404052290,1769778675359,-151.0,0.00038356,120]
[404052291,1769778675426,-151.0,0.00038356,120]
[404052292,1769778675495,-151.0,0.00038356,120]
[404052293,1769778675565,-195.351977,0.00038356,120]
[404052294,1769778675633,-151.0,0.00038356,60]
[404052295,1769778675703,-151.0,0.00038356,60]
[404052296,1769778675771,-151.0,0.00038356,60]
[404052297,1769778675929,-151.0,0.00038356,60]
[404052298,1769778675997,-151.0,0.00038356,60]
[404052299,1769778676066,-151.0,0.00038356,60]
[404052300,1769778676134,-151.0,0.00038356,60]
[404052301,1769778676204,-151.0,0.00038356,60]
[404052302,1769778676273,-151.0,0.00038356,60]
[404052303,1769778676342,-151.0,0.00038356,60]
[404052304,1769778676411,-151.0,0.00038356,60]
[404052305,1769778676481,-151.0,0.00038356,60]
[404052306,1769778676552,-154.370673,0.00038356,60]
[404052307,1769778676622,-151.0,0.00038356,120]
[404052308,1769778676691,-151.0,0.00038356,120]
[404052309,1769778676761,-151.0,0.00038356,120]
[404052310,1769778676830,-151.0,0.00038356,120]
[404052311,1769778676903,-151.0,0.00038356,120]
[404052312,1769778676973,-151.0,0.00038356,120]
[404052313,1769778677046,-151.0,0.00038356,120]
[404052314,1769778677113,-151.0,0.00038356,120]
[404052315,1769778677180,-151.0,0.00038356,120]
[404052316,1769778677247,-151.0,0.00038356,120]
[404052317,1769778677312,-151.0,0.00038356,120]
[404052318,1769778677378,-151.0,0.00038356,120]
[404052319,1769778677444,-151.0,0.00038356,120]
[404052320,1769778677511,-151.0,0.00038356,120]
[404052321,1769778677578,-151.0,0.00038356,120]
[404052322,1769778677647,-293.69100331,0.00038356,120]
[404052323,1769778677715,-151.0,0.00038356,120]
[404052324,1769778677779,-151.0,0.00038356,120]
[404052325,1769778677848,-151.0,0.00038356,120]
[404052326,1769778677916,-151.0,0.00038356,120]
[404052327,1769778677982,-151.0,0.00038356,120]
[404052328,1769778678050,-151.0,0.00038356,120]
[404052329,1769778678117,-151.0,0.00038356,120]
[404052330,1769778678185,-151.0,0.00038356,120]
[404052331,1769778678253,-151.0,0.00038356,120]
[404052332,1769778678319,-151.0,0.00038356,120]
[404052333,1769778678385,-151.0,0.00038356,120]
[404052334,1769778678451,-172.848712,0.00038356,120]
[404052335,1769778678518,-151.0,0.00038356,120]
[404052336,1769778678583,-151.0,0.00038356,120]
[404052337,1769778678650,-151.0,0.00038356,120]
[404052338,1769778678718,-151.0,0.00038356,120]
[404052339,1769778678785,-198.654067,0.00038356,120]
[404052340,1769778678862,-454.973104,0.00038356,120]
[404052341,1769778678929,-454.973104,0.00038356,120]
[404052342,1769778678997,-454.973104,0.00038356,120]
[404052343,1769778679065,-454.973104,0.00038356,120]
[404052344,1769778679134,-454.973104,0.00038356,120]
[404052345,1769778679200,-454.973104,0.00038356,120]
[404052346,1769778679269,-151.0,0.00038356,120]
[404052347,1769778679337,-151.0,0.00038356,120]
[404052348,1769778679404,-454.973104,0.00038356,120]
[404052349,1769778679472,-151.0,0.00038356,120]
[404052350,1769778679536,-454.973104,0.00038356,120]
[404052351,1769778679603,-151.0,0.00038356,120]
[404052352,1769778679670,-454.973104,0.00038356,120]
[404052353,1769778679737,-280.095274,0.00038356,120]
[404052354,1769778679804,-454.973104,0.00038356,120]
[404052355,1769778679872,-454.973104,0.00038356,120]
[404052356,1769778679938,-454.973104,0.00038356,120]
[404052357,1769778680005,-154.553219,0.00038356,120]
[404052358,1769778680072,-454.973104,0.00038356,120]
[404052359,1769778680138,-154.553219,0.00038356,120]
[404052360,1769778680205,-454.973104,0.00038356,120]
[404052361,1769778680270,-154.553219,0.00038356,120]
[404052362,1769778680336,-454.973104,0.00038356,120]
[404052363,1769778680401,-154.553219,0.00038356,120]
[404052364,1769778680467,-454.973104,0.00038356,120]
[404052365,1769778680535,-154.553219,0.00038356,120]
[404052366,1769778680601,-454.973104,0.00038356,120]
[404052367,1769778680669,-154.553219,0.00038356,120]
[404052368,1769778680734,-454.973104,0.00038356,120]
[404052369,1769778680804,-154.553219,0.00038356,120]
[404052370,1769778680869,-454.973104,0.00038356,120]
[404052371,1769778680934,-154.553219,0.00038356,120]
[404052372,1769778680998,-454.973102,0.00038356,120]
[404052373,1769778681064,-154.553219,0.00038356,120]
[404052374,1769778681129,-154.553219,0.00038356,120]
[404052375,1769778681195,-154.553219,0.00038356,120]
[404052376,1769778681259,-154.553219,0.00038356,120]
[404052377,1769778681517,-154.553219,0.00038356,120]
[404052378,1769778681589,-154.553219,0.00038356,120]
[404052379,1769778681657,-154.553219,0.00038356,120]
[404052380,1769778681725,-154.553219,0.00038356,120]
[404052381,1769778681797,-154.553219,0.00038356,120]
[404052382,1769778681866,-154.553219,0.00038356,120]
[404052383,1769778681937,-154.553219,0.00038356,120]
[404052384,1769778682004,-154.553212,0.00038356,120]
[404052385,1769778682069,-151.0,0.00038356,120]
[404052386,1769778682137,-177.897046,0.00038356,120]
[404052387,1769778682205,-151.0,0.00038356,60]
[404052388,1769778682271,-209.285836,0.00038356,60]
[404052389,1769778682336,-151.0,0.00038356,120]
[404052390,1769778682401,-151.0,0.00038356,120]
[404052391,1769778682466,-274.735936,0.00038356,120]
[404052392,1769778682530,-151.0,0.00038356,120]
[404052393,1769778682595,-151.0,0.00038356,120]
[404052394,1769778682661,-256.576815,0.00038356,120]
[404052395,1769778682725,-151.0,0.00038356,120]
[404052396,1769778682789,-290.100316,0.00038356,120]
[404052397,1769778682858,-151.0,0.00038356,120]
[404052398,1769778682925,-151.0,0.00038356,120]
[404052399,1769778682990,-151.0,0.00038356,120]
[404052400,1769778683055,-151.0,0.00038356,120]
[404052401,1769778683120,-151.0,0.00038356,120]
[404052402,1769778683185,-151.0,0.00038356,120]
[404052403,1769778683252,-151.0,0.00038356,120]
[404052404,1769778683318,-151.0,0.00038356,120]
[404052405,1769778683386,-151.0,0.00038356,120]
[404052406,1769778683454,-151.0,0.00038356,120]
[404052407,1769778683521,-151.0,0.00038356,120]
[404052408,1769778683589,-217.919262,0.00038356,120]
[404052409,1769778683659,-954.930046,0.00038356,120]
[404052410,1769778683729,-954.930046,0.00038356,120]
[404052411,1769778683799,-954.930046,0.00038356,120]
[404052412,1769778683868,-954.930046,0.00038356,120]
[404052413,1769778683936,-954.930046,0.00038356,120]
[404052414,1769778684006,-954.930046,0.00038356,120]
[404052415,1769778684075,-954.930046,0.00038356,120]
[404052416,1769778684145,-954.930046,0.00038356,120]
[404052417,1769778684214,-954.930046,0.00038356,120]
[404052418,1769778684282,-954.930046,0.00038356,120]
[404052419,1769778684349,-954.930046,0.00038356,120]
[404052420,1769778684417,-954.930046,0.00038356,120]
[404052421,1769778684486,-954.930046,0.00038356,120]
[404052422,1769778684555,-954.930046,0.00038356,120]
[404052423,1769778684625,-954.930046,0.00038356,120]
[404052424,1769778684699,-954.930046,0.00038356,120]
[404052425,1769778684789,-954.930046,0.00038356,120]
[404052426,1769778684878,-954.930046,0.00038356,120]
[404052427,1769778684963,-954.930046,0.00038356,120]
[404052428,1769778685036,-954.930053,0.00038356,120]
[404052429,1769778685106,-2057.776825,0.00038356,120]
[404052430,1769778685172,-2057.776825,0.00038356,120]
[404052431,1769778685239,-2057.776825,0.00038356,120]
[404052432,1769778685304,-2057.776825,0.00038356,120]
[404052433,1769778685373,-2057.776825,0.00038356,120]
[404052434,1769778685441,-2057.776825,0.00038356,120]
[404052435,1769778685507,-2057.776825,0.00038356,120]
[404052436,1769778685574,-2057.776825,0.00038356,120]
[404052437,1769778685642,-2057.776825,0.00038356,120]
[404052438,1769778685708,-2057.776825,0.00038356,120]
[404052439,1769778685775,-2057.776825,0.00038356,120]
[404052440,1769778685842,-2057.776825,0.00038356,120]
[404052441,1769778685908,-2057.776825,0.00038356,120]
[404052442,1769778685972,-2057.776825,0.00038356,120]
[404052443,1769778686039,-2057.776825,0.00038356,120]
[404052444,1769778686105,-2057.776825,0.00038356,120]
[404052445,1769778686170,-2057.776825,0.00038356,120]
[404052446,1769778686235,-2057.776825,0.00038356,120]
[404052447,1769778686300,-2057.776825,0.00038356,120]
[404052448,1769778686725,-2057.776823,0.00038356,120]
[404052449,1769778686796,-1999.0,0.00038904,120]
[404052450,1769778686900,-1999.0,0.0004,120]
[404052451,1769778686969,-979.5,0.00041,60]
[404052452,1769778687037,-173.0,0.00041,90]
[404052453,1769778687106,-1999.0,0.00041095,120]
[404052454,1769778687173,-616.0,0.000414,30]
[404052455,1769778687240,-203.0,0.000414,30]
[404052456,1769778687308,-607.0,0.000414,30]
[404052457,1769778687378,-200.0,0.000415,120]
[404052458,1769778687448,-1351.88409914,0.000419,120]
[404052459,1769778687517,-1351.8840991,0.000419,120]
[404052460,1769778687588,-1351.8840991,0.000419,120]
[404052461,1769778687657,-1351.8840991,0.000419,120]
[404052462,1769778687723,-1351.8840991,0.000419,120]
[404052463,1769778687790,-1351.8840991,0.000419,120]
[404052464,1769778687861,-1351.8840991,0.000419,120]
[404052465,1769778687932,-1351.8840991,0.000419,120]
[404052466,1769778688004,-1351.8840991,0.000419,120]
[404052467,1769778688073,-1351.8840991,0.000419,120]
[404052468,1769778688142,-1351.8840991,0.000419,120]
[404052469,1769778688213,-1351.8840991,0.000419,120]
[404052470,1769778688284,-1351.8840991,0.000419,120]
[404052471,1769778688355,-1351.8840991,0.000419,120]
[404052472,1769778688429,-1351.8840991,0.000419,120]
[404052473,1769778688502,-1351.8840991,0.000419,120]
[404052474,1769778688574,-1351.8840991,0.000419,120]
[404052475,1769778688644,-1351.8840991,0.000419,120]
[404052476,1769778688714,-1351.8840991,0.000419,120]
[404052477,1769778688784,-1351.8840991,0.000419,120]
[404052478,1769778688861,-654.5,0.00041902,120]
[404052479,1769778688931,-150.0,0.00041918,120]
[404052480,1769778688998,-500.0,0.00042,120]
[404052481,1769778689068,-1999.0,0.00042191,120]
[404052482,1769778689137,-7109.0,0.00042246,30]
[404052483,1769778689207,-619.48,0.00042438,120]
[404052484,1769778689280,-500.0,0.000425,120]
[404052485,1769778689349,-619.48,0.00042575,120]
[404052486,1769778689424,-7109.0,0.00042681,30]
[404052487,1769778689492,-619.48,0.00042712,120]
[404052488,1769778689560,-619.48,0.00042849,120]
[404052489,1769778689628,-619.48,0.00042986,120]
[404052490,1769778689697,-500.0,0.00043,120]
[404052491,1769778689764,-300.0,0.00043068,120]
[404052492,1769778689831,-7109.0,0.00043117,30]
[404052493,1769778689897,-619.48,0.00043123,120]
[404052494,1769778689962,-619.48,0.0004326,120]
[404052495,1769778690027,-508.1,0.00043287,120]
[404052496,1769778690094,-508.1,0.00043287,120]
[404052497,1769778690161,-508.1,0.00043287,120]
[404052498,1769778690232,-508.1,0.00043287,120]
[404052499,1769778690298,-508.1,0.00043287,120]
[404052500,1769778690366,-508.1,0.00043287,120]
[404052501,1769778690434,-508.1,0.00043287,120]
[404052502,1769778690505,-799.0,0.00043287,120]
[404052503,1769778690576,-508.1,0.00043287,120]
[404052504,1769778690705,-508.1,0.00043287,120]
[404052505,1769778690771,-508.1,0.00043287,120]
[404052506,1769778690838,-508.1,0.00043287,120]
[404052507,1769778690904,-508.1,0.00043287,120]
[404052508,1769778690971,-508.1,0.00043287,120]
[404052509,1769778691040,-508.1,0.00043287,120]
[404052510,1769778691107,-508.1,0.00043287,120]
[404052511,1769778691175,-508.1,0.00043287,120]
[404052512,1769778691241,-508.1,0.00043287,120]
[404052513,1769778691307,-508.1,0.00043287,120]
[404052514,1769778691374,-508.1,0.00043287,120]
[404052515,1769778691441,-508.1,0.00043287,120]
[404052516,1769778691507,-508.1,0.00043287,120]
[404052517,1769778691574,-508.1,0.00043287,120]
[404052518,1769778691644,-508.1,0.00043287,120]
[404052519,1769778691714,-508.13468342,0.00043287,120]
[404052520,1769778691781,-500.0,0.00043287,120]
[404052521,1769778691851,-639.75800932,0.00043287,120]
[404052522,1769778691916,-500.0,0.00043287,120]
[404052523,1769778691984,-500.0,0.00043287,120]
[404052524,1769778692050,-500.0,0.00043287,120]
[404052525,1769778692118,-500.0,0.00043287,120]
[404052526,1769778692183,-500.0,0.00043287,120]
[404052527,1769778692246,-500.0,0.00043287,120]
[404052528,1769778692306,-500.0,0.00043287,120]
[404052529,1769778692370,-500.0,0.00043287,120]
[404052530,1769778692436,-500.0,0.00043287,120]
[404052531,1769778692501,-500.0,0.00043287,120]
[404052532,1769778692563,-500.0,0.00043287,120]
[404052533,1769778692625,-500.0,0.00043287,120]
[404052534,1769778692689,-500.0,0.00043287,120]
[404052535,1769778692750,-500.0,0.00043287,120]
[404052536,1769778692811,-500.0,0.00043287,120]
[404052537,1769778692875,-500.0,0.00043287,120]
[404052538,1769778692937,-500.0,0.00043287,120]
[404052539,1769778693001,-500.0,0.00043287,120]
[404052540,1769778693063,-500.0,0.00043287,120]
[404052541,1769778693124,-388.38062646,0.00043287,120]
[404052542,1769778693187,-500.0,0.00043287,120]
[404052543,1769778693253,-500.0,0.00043287,120]
[404052544,1769778693322,-500.0,0.00043287,120]
[404052545,1769778693390,-500.0,0.00043287,120]
[404052546,1769778693454,-191.5034101,0.00043287,120]
[404052547,1769778693518,-500.0,0.00043287,120]
[404052548,1769778693584,-500.0,0.00043287,120]
[404052549,1769778693651,-500.0,0.00043287,120]
[404052550,1769778693716,-500.0,0.00043287,120]
[404052551,1769778693782,-500.0,0.00043287,120]
[404052552,1769778693849,-500.0,0.00043287,120]
[404052553,1769778693915,-500.0,0.00043287,120]
[404052554,1769778693982,-500.0,0.00043287,120]
[404052555,1769778694050,-500.0,0.00043287,120]
[404052556,1769778694118,-500.0,0.00043287,120]
[404052557,1769778694185,-500.0,0.00043287,120]
[404052558,1769778694252,-500.0,0.00043287,120]
[404052559,1769778694319,-637.60088994,0.00043287,120]
[404052560,1769778694386,-794.93,0.00043287,120]
[404052561,1769778694454,-794.93,0.00043287,120]
[404052562,1769778694520,-794.93,0.00043287,120]
[404052563,1769778694588,-794.93,0.00043287,120]
[404052564,1769778694656,-794.93,0.00043287,120]
[404052565,1769778694724,-794.93,0.00043287,120]
[404052566,1769778694792,-794.93,0.00043287,120]
[404052567,1769778694864,-794.93,0.00043287,120]
[404052568,1769778694932,-794.93,0.00043287,120]
[404052569,1769778694997,-794.93,0.00043287,120]
[404052570,1769778695062,-794.93,0.00043287,120]
[404052571,1769778695125,-794.93,0.00043287,120]
[404052572,1769778695189,-794.93,0.00043287,120]
[404052573,1769778695256,-794.93,0.00043287,120]
[404052574,1769778695323,-794.93,0.00043287,120]
[404052575,1769778695388,-794.93,0.00043287,120]
[404052576,1769778695456,-794.93,0.00043287,120]
[404052577,1769778695520,-794.93,0.00043287,120]
[404052578,1769778695586,-500.0,0.00043287,120]
[404052579,1769778695652,-794.93,0.00043287,120]
[404052580,1769778695716,-500.0,0.00043287,120]
[404052581,1769778695780,-794.93,0.00043287,120]
[404052582,1769778695845,-500.0,0.00043287,120]
[404052583,1769778695912,-794.93,0.00043287,120]
[404052584,1769778696134,-500.0,0.00043287,120]
[404052585,1769778696202,-794.93,0.00043287,120]
[404052586,1769778696268,-500.0,0.00043287,120]
[404052587,1769778696336,-794.93,0.00043287,120]
[404052588,1769778696401,-500.0,0.00043287,120]
[404052589,1769778696467,-795.10897058,0.00043287,120]
[404052590,1769778696533,-500.0,0.00043287,120]
[404052591,1769778696599,-500.0,0.00043287,120]
[404052592,1769778696666,-500.0,0.00043287,120]
[404052593,1769778696732,-500.0,0.00043287,120]
[404052594,1769778696802,-500.0,0.00043287,120]
[404052595,1769778696870,-500.0,0.00043287,120]
[404052596,1769778696937,-500.0,0.00043287,120]
[404052597,1769778697004,-500.0,0.00043287,120]
[404052598,1769778697069,-179.18503392,0.00043287,120]
[404052599,1769778697135,-500.0,0.00043287,120]
[404052600,1769778697198,-500.0,0.00043287,120]
[404052601,1769778697261,-500.0,0.00043287,120]
[404052602,1769778697324,-500.0,0.00043287,120]
[404052603,1769778697387,-500.0,0.00043287,120]
[404052604,1769778697450,-500.0,0.00043287,120]
[404052605,1769778697513,-595.79621396,0.00043287,120]
[404052606,1769778697580,-868.34,0.00043287,120]
[404052607,1769778697648,-868.34,0.00043287,120]
[404052608,1769778697716,-868.34,0.00043287,120]
[404052609,1769778697783,-868.34,0.00043287,120]
[404052610,1769778697852,-868.34,0.00043287,120]
[404052611,1769778697917,-868.34,0.00043287,120]
[404052612,1769778697983,-868.34,0.00043287,120]
[404052613,1769778698050,-868.34,0.00043287,120]
[404052614,1769778698116,-868.34,0.00043287,120]
[404052615,1769778698183,-500.0,0.00043287,120]
[404052616,1769778698252,-868.34,0.00043287,120]
[404052617,1769778698320,-500.0,0.00043287,120]
[404052618,1769778698390,-500.0,0.00043287,120]
[404052619,1769778698458,-868.34,0.00043287,120]
[404052620,1769778698524,-500.0,0.00043287,120]
[404052621,1769778698589,-868.34,0.00043287,120]
[404052622,1769778698656,-500.0,0.00043287,120]
[404052623,1769778698723,-868.34,0.00043287,120]
[404052624,1769778698787,-500.0,0.00043287,120]
[404052625,1769778698857,-868.34,0.00043287,120]
[404052626,1769778698922,-428.41661443,0.00043287,120]
[404052627,1769778698986,-868.34,0.00043287,120]
[404052628,1769778699052,-868.34,0.00043287,120]
[404052629,1769778699119,-500.0,0.00043287,120]
[404052630,1769778699186,-868.34,0.00043287,120]
[404052631,1769778699253,-500.0,0.00043287,120]
[404052632,1769778699317,-868.34,0.00043287,120]
[404052633,1769778699384,-500.0,0.00043287,120]
[404052634,1769778699450,-868.34,0.00043287,120]
[404052635,1769778699514,-566.81675599,0.00043287,120]
[404052636,1769778699583,-868.34,0.00043287,120]
[404052637,1769778699650,-868.34,0.00043287,120]
[404052638,1769778699717,-868.34,0.00043287,120]
[404052639,1769778699781,-500.0,0.00043287,120]
[404052640,1769778699854,-500.0,0.00043287,120]
[404052641,1769778699922,-868.34,0.00043287,120]
[404052642,1769778699987,-500.0,0.00043287,120]
[404052643,1769778700054,-868.42627541,0.00043287,120]
[404052644,1769778700121,-500.0,0.00043287,120]
[404052645,1769778700184,-500.0,0.00043287,120]
[404052646,1769778700249,-500.0,0.00043287,120]
[404052647,1769778700314,-500.0,0.00043287,120]
[404052648,1769778700380,-500.0,0.00043287,120]
[404052649,1769778700446,-500.0,0.00043287,120]
[404052650,1769778700511,-500.0,0.00043287,120]
[404052651,1769778700576,-500.0,0.00043287,120]
[404052652,1769778700642,-176.09,0.00043287,120]
[404052653,1769778700711,-535.59,0.00043287,120]
[404052654,1769778700783,-535.59,0.00043287,120]
[404052655,1769778700852,-535.59,0.00043287,120]
[404052656,1769778700917,-535.59,0.00043287,120]
[404052657,1769778700981,-535.59,0.00043287,120]
[404052658,1769778701041,-535.59,0.00043287,120]
[404052659,1769778701481,-535.59,0.00043287,120]
[404052660,1769778701573,-535.59,0.00043287,120]
[404052661,1769778701644,-535.59,0.00043287,120]
[404052662,1769778701710,-535.59,0.00043287,120]
[404052663,1769778701777,-535.59,0.00043287,120]
[404052664,1769778701845,-535.59,0.00043287,120]
[404052665,1769778701927,-535.59,0.00043287,120]
[404052666,1769778701998,-535.59,0.00043287,120]
[404052667,1769778702066,-535.59,0.00043287,120]
[404052668,1769778702137,-535.59,0.00043287,120]
[404052669,1769778702206,-535.59,0.00043287,120]
[404052670,1769778702273,-535.59,0.00043287,120]
[404052671,1769778702338,-535.59,0.00043287,120]
[404052672,1769778702405,-535.59,0.00043287,120]
[404052673,1769778702474,-535.59,0.00043287,120]
[404052674,1769778702541,-535.59,0.00043287,120]
[404052675,1769778702611,-535.59,0.00043287,120]
[404052676,1769778702680,-535.59,0.00043287,120]
[404052677,1769778702748,-500.0,0.00043287,120]
[404052678,1769778702815,-500.0,0.00043287,120]